[Event "1st Chessable Sunway Formentera 2022"]
[Site "Formentera Punta Prima"]
[Date "2022.05.05"]
[Round "7.1"]
[White "Santos Latasa, Jaime"]
[Black "Cuenca Jimenez, Jose Fernando"]
[Result "1/2-1/2"]
[ECO "C80"]
[WhiteElo "2672"]
[BlackElo "2551"]
[Annotator "TA"]
[PlyCount "60"]
[EventDate "2022.05.05"]
[EventType "swiss"]
[EventCountry "ESP"]
[SourceTitle "playchess.com"]
[Source "ChessBase"]
[SourceQuality "1"]
[TimeControl "40/5400+30:1800+30"]

{[%evp 24,60,35,20,43,36,40,29,20,34,29,15,25,25,29,23,20,0,0,0,0,0,0,0,0,0,0,0,0,0,0,0,0,0,0,0,0,0,0]} 1. e4 {[%emt 0:00:02]} e5 {[%emt 0:00:30]} 2. Nf3 {[%emt 0:00:04]} Nc6 {[%emt 0:00:17]} 3. Bb5 {[%emt 0:00:04][%cal Bf1b5,Bb5a4,Ba4b3][%mdl 32]} a6 {[%emt 0:00:09]} 4. Ba4 {[%emt 0:00:05]} Nf6 {[%emt 0:00:10]} 5. O-O {[%emt 0:00:06]} Nxe4 {[%emt 0:00:13]} 6. d4 {[%emt 0:00:05]} b5 {[%emt 0:00:15]} 7. Bb3 {[%emt 0:00:05]} d5 {[%emt 0:00:07]} 8. dxe5 {[%emt 0:00:05]} Be6 {[%emt 0:00:10]} 9. Nbd2 {[%emt 0:00:03]} Nc5 {[%emt 0:01:43]} 10. c3 {[%emt 0:00:24]} d4 {[%emt 0:01:03]} 11. Bxe6 {[%emt 0:00:28]} Nxe6 {[%emt 0:00:12]} 12. cxd4 {[%emt 0:00:05]} Ncxd4 {[%emt 0:01:01]} 13. a4 {[%emt 0:00:11]} Bb4 {[%emt 0:00:44] 13...Nc6 is a critical line. C80: Open Ruy Lopez: Sidelines and 9 Nbd2.} 14. axb5 {[%emt 0:00:16]} Nxb5 {[%emt 0:00:11]} (14... axb5 $2 15. Rxa8 Qxa8 16. Nxd4 Nxd4 17. Qg4 $16) 15. Qa4 {[%emt 0:00:05]} c5 {[%emt 0:01:18] White has an edge.} 16. Nc4 {[%emt 0:03:58] [#] Black must now prevent Rd1.} O-O {[%emt 0:02:14]} 17. Rd1 {[%emt 0:01:03] Inhibits Qd3.} Nbd4 {[%emt 0:01:18]} 18. Nxd4 {[%emt 0:00:37]} Nxd4 {[%emt 0:00:12]} 19. Be3 {[%emt 0:00:22] Threatens to win with Bxd4.} a5 $1 {[%emt 0:00:16][%cal Ba6a5,Ba5b4][%mdl 32] [#]} 20. Nd6 $146 {[%emt 0:07:29] The position is equal.} ({Predecessor:} 20. h3 Ra6 21. Bxd4 cxd4 22. Nd6 Qg5 23. Rxd4 Qxe5 24. Rxb4 Rxd6 25. Rb5 Qe2 26. Qxa5 {½-½ (42) Le,Q (2709)-Vidit,S (2726) chess24.com INT 2020}) 20... Qe7 {[%emt 0:15:50]} 21. Bxd4 {[%emt 0:05:55]} cxd4 {[%emt 0:00:14]} 22. Rxd4 {[%emt 0:01:05]} Qxe5 {[%emt 0:00:51]} 23. Rxb4 {[%emt 0:00:18]} axb4 {[%emt 0:00:34]} 24. Qxa8 {[%emt 0:00:06] [#] Strongly threatening Nc4.} Qxd6 $11 {[%emt 0:00:04][%mdl 4096] Endgame KQR-KQR} 25. Qe4 {[%emt 0:00:22]} Qd2 {[%emt 0:00:06]} 26. g3 {[%emt 0:00:08]} Qxb2 {[%emt 0:00:06]} 27. Rb1 {[%emt 0:00:04]} Qc3 {[%emt 0:00:05]} 28. Qxb4 {[%emt 0:00:04]} Qxb4 {[%emt 0:00:04]} 29. Rxb4 {[%emt 0:00:04]} g6 {[%emt 0:00:04]} 30. Kg2 {[%emt 0:00:05]} Kg7 {[%emt 1:15:29] Weighted Error Value: White=0.03 (flawless) /Black=0.02 (flawless)} 1/2-1/2

[Event "1st Chessable Sunway Formentera 2022"]
[Site "Formentera Punta Prima"]
[Date "2022.05.05"]
[Round "7.2"]
[White "Sargsyan, Shant"]
[Black "Gukesh D"]
[Result "1/2-1/2"]
[ECO "B31"]
[WhiteElo "2641"]
[BlackElo "2659"]
[Annotator "TA"]
[PlyCount "112"]
[EventDate "2022.05.05"]
[EventType "swiss"]
[EventCountry "ESP"]
[SourceTitle "playchess.com"]
[Source "ChessBase"]
[SourceQuality "1"]
[TimeControl "40/5400+30:1800+30"]

{[%evp 14,112,16,24,41,43,52,53,53,54,60,62,67,22,34,24,70,70,89,80,75,69,85,60,55,0,50,29,37,0,40,34,54,57,42,47,51,48,44,20,20,20,19,20,24,24,25,17,17,18,18,18,20,18,18,20,39,39,23,38,45,45,45,45,45,45,51,45,64,64,70,45,64,45,45,45,45,45,45,45,45,45,45,45,45,45,45,0,0,0,0,0,0,0,0,0,0,0,0,0,0]} 1. e4 {[%emt 0:03:01]} c5 {[%emt 0:01:44]} 2. Nf3 {[%emt 0:00:27]} Nc6 {[%emt 0:00:08]} 3. Bb5 {[%emt 0:00:39]} g6 {[%emt 0:01:26]} 4. O-O {[%emt 0:00:23]} Bg7 {[%emt 0:00:06]} 5. Re1 {[%emt 0:00:41]} e5 {[%emt 0:00:58]} 6. Bxc6 {[%emt 0:00:26]} dxc6 {[%emt 0:00:22]} 7. d3 {[%emt 0:00:16]} Qe7 {[%emt 0:03:37]} 8. a4 {[%emt 0:01:08]} a5 {[%emt 0:00:22] B31: Sicilian: 2...Nc6 3 Bb5 g6.} 9. Na3 {[%emt 0:01:30]} Nf6 {[%emt 0:00:08]} 10. Nc4 {[%emt 0:00:28]} Nd7 {[%emt 0:00:08] White is slightly better.} 11. Bg5 {[%emt 0:00:46]} f6 {[%emt 0:01:31]} 12. Be3 {[%emt 0:00:48]} b6 {[%emt 0:05:22] [#]} 13. c3 $146 {[%emt 0:08:07]} ({Predecessor:} 13. Nfd2 Rb8 14. f4 O-O 15. f5 Rd8 16. Rf1 Nf8 17. Qf3 Qf7 18. h4 h6 19. Qg3 {1-0 (29) Khavsky,S-Karasev,V (2375) Leningrad 1983}) 13... Ba6 {[%emt 0:01:59]} 14. Qb3 {[%emt 0:05:21]} Bf8 {[%emt 0:26:52]} (14... Qe6 $11) 15. Nfd2 $14 {[%emt 0:05:30]} ({Wrong is} 15. Nxb6 $2 Rb8 16. Rab1 Rxb6 $19) 15... Qf7 {[%emt 0:00:33]} 16. f4 {[%emt 0:13:23]} exf4 {[%emt 0:02:02]} 17. Bxf4 {[%emt 0:00:07] [#] e5 is the strong threat.} Be7 $1 {[%emt 0:00:54]} 18. e5 {[%emt 0:03:46]} fxe5 {[%emt 0:04:03]} 19. Bg5 {[%emt 0:03:47]} Qe6 {[%emt 0:08:36]} (19... Qd5 $11 20. Bh6 Bxc4 21. Nxc4 Rg8) 20. Bxe7 {[%emt 0:02:03]} Kxe7 {[%emt 0:01:54]} 21. Re3 {[%emt 0:04:09]} (21. d4 $5 {[%cal Rc4e5]}) 21... Rae8 {[%emt 0:08:40]} 22. Rae1 {[%emt 0:15:27][%cal Re3e5]} Bxc4 {[%emt 0:00:28]} 23. Nxc4 {[%emt 0:00:14][%cal Re3e5] Threatens to win with Rxe5.} Kf8 {[%emt 0:01:29]} 24. d4 {[%emt 0:00:24][%cal Bd3d4,Bd4e5,Be5e6,Be6d7][%mdl 32]} Kg7 {[%emt 0:02:58]} 25. dxe5 {[%emt 0:02:05]} Rhf8 {[%emt 0:00:10] [#]} 26. Qd1 $1 {[%emt 0:02:30]} Qxc4 {[%emt 0:05:39]} 27. Qxd7+ {[%emt 0:00:09]} Qf7 {[%emt 0:00:05]} 28. e6 {[%emt 0:04:10] Active counter play!} Qxd7 {[%emt 0:01:26]} 29. exd7 $11 {[%emt 0:00:02][%mdl 4096] Endgame KRR-KRR} Rd8 {[%emt 0:00:39]} ({Don't take} 29... Rxe3 30. Rxe3 Rd8 31. Re7+ Kf6 32. Rxh7 $16) 30. Rd1 {[%emt 0:00:53]} Rf7 {[%emt 0:00:48]} 31. Red3 {[%emt 0:00:10]} b5 {[%emt 0:01:20]} 32. axb5 {[%emt 0:03:00]} cxb5 {[%emt 0:00:05]} 33. Rd5 {[%emt 0:00:07]} b4 {[%emt 0:00:39]} 34. cxb4 {[%emt 0:02:01]} cxb4 {[%emt 0:01:14]} 35. b3 {[%emt 0:00:16]} Kf6 {[%emt 0:03:32]} 36. g4 {[%emt 0:11:51]} Ke6 {[%emt 0:01:05][%cal Rd8d7]} 37. Rd6+ {[%emt 0:00:08]} ({Of course not} 37. Rxa5 Rfxd7 38. Re1+ Kf6 $11) 37... Ke7 {[%emt 0:00:07]} 38. Kg2 {[%emt 0:01:01]} Kf8 {[%emt 0:07:38]} 39. R6d5 {[%emt 0:01:25]} Kg7 {[%emt 0:00:23]} 40. Kg3 {[%emt 0:00:00]} h6 {[%emt 0:00:00]} 41. h4 {[%emt 0:02:06]} Re7 {[%emt 0:01:18]} 42. R1d3 {[%emt 0:00:11]} Rf7 {[%emt 0:00:08]} 43. g5 {[%emt 0:02:01]} hxg5 {[%emt 0:00:48]} 44. hxg5 {[%emt 0:00:05]} Re7 {[%emt 0:00:24]} 45. Kf4 {[%emt 0:01:04]} Rf8+ {[%emt 0:00:06]} 46. Kg4 {[%emt 0:00:16]} Rd8 {[%emt 0:00:17]} 47. R3d4 {[%emt 0:00:38]} Rf7 {[%emt 0:00:22]} 48. Rd6 {[%emt 0:03:14]} Re7 {[%emt 0:01:13]} 49. Kf4 {[%emt 0:00:19]} Rf8+ {[%emt 0:00:28]} 50. Rf6 {[%emt 0:00:16] White threatens Rxf8 and mate.} Rd8 {[%emt 0:00:07] The position is equal.} 51. Rdd6 {[%emt 0:00:08]} Rdxd7 {[%emt 0:01:34]} 52. Rxg6+ {[%emt 0:00:08]} Kh7 {[%emt 0:00:04]} 53. Rh6+ {[%emt 0:00:31]} Kg7 {[%emt 0:00:36]} 54. Rdg6+ {[%emt 0:00:31]} Kf7 {[%emt 0:00:07]} 55. Ra6 {[%emt 0:01:02]} Kg7 {[%emt 0:01:20] Inhibits Rh7+.} 56. Rxa5 {[%emt 0:01:45]} Rd3 {[%emt 0:00:39] Weighted Error Value: White=0.07 (flawless) /Black=0.05 (flawless)} 1/2-1/2

[Event "1st Chessable Sunway Formentera 2022"]
[Site "Formentera Punta Prima"]
[Date "2022.05.05"]
[Round "7.3"]
[White "Santos Ruiz, Miguel"]
[Black "Martirosyan, Haik M."]
[Result "1/2-1/2"]
[ECO "C67"]
[WhiteElo "2586"]
[BlackElo "2652"]
[Annotator "TA"]
[PlyCount "61"]
[EventDate "2022.05.05"]
[EventType "swiss"]
[EventCountry "ESP"]
[SourceTitle "playchess.com"]
[Source "ChessBase"]
[SourceQuality "1"]
[TimeControl "40/5400+30:1800+30"]

{[%evp 20,61,29,22,23,19,25,16,19,15,31,24,28,30,27,25,46,20,34,37,46,28,36,29,52,27,37,17,22,16,18,18,18,15,18,18,17,16,25,9,26,26,34,37]} 1. e4 {[%emt 0:00:03]} e5 {[%emt 0:00:55]} 2. Nf3 {[%emt 0:00:07]} Nc6 {[%emt 0:00:07]} 3. Bb5 {[%emt 0:00:05]} Nf6 {[%emt 0:00:08]} 4. O-O {[%emt 0:00:07][%cal Bh1f1,Bf1e1,Be1e5][%mdl 32]} Nxe4 {[%emt 0:00:05]} 5. Re1 {[%emt 0:00:05]} Nd6 {[%emt 0:00:06]} 6. Nxe5 {[%emt 0:00:06]} Be7 {[%emt 0:00:07]} 7. Bf1 {[%emt 0:00:06]} Nxe5 {[%emt 0:00:05]} 8. Rxe5 {[%emt 0:00:04]} O-O {[%emt 0:00:10]} 9. d4 {[%emt 0:00:05]} Bf6 {[%emt 0:00:09]} 10. Re1 {[%emt 0:00:06]} Nf5 {[%emt 0:00:30]} 11. c3 {[%emt 0:00:06]} d5 {[%emt 0:00:24] C67: Ruy Lopez: Berlin Defence: 4 0-0 Nxe4.} 12. Nd2 {[%emt 0:00:06]} c6 {[%emt 0:01:06]} 13. Nf3 {[%emt 0:00:09]} Nd6 {[%emt 0:00:16] The position is equal.} 14. h3 {[%emt 0:00:07] [#]} Re8 $146 {[%emt 0:03:54]} ({Predecessor:} 14... Bf5 15. Bf4 Be4 16. Ne5 Bg5 17. Bh2 Re8 18. a4 a5 19. Qb3 Re7 20. Qa3 Nc8 {1-0 (28) Pirhala,L (2315)-Packroff,H (2196) ICCF email 2018}) 15. Rxe8+ {[%emt 0:00:30]} Nxe8 {[%emt 0:00:17]} 16. Bf4 {[%emt 0:01:43]} Bf5 {[%emt 0:08:35]} 17. Qb3 {[%emt 0:07:16]} Qb6 {[%emt 0:00:56]} 18. Re1 {[%emt 0:02:36]} h6 {[%emt 0:08:34]} 19. Ne5 {[%emt 0:11:24][%cal Bf3e5,Be5d3,Bd3c5][%mdl 32]} Rd8 {[%emt 0:06:12]} 20. Nd3 {[%emt 0:10:57]} Qxb3 {[%emt 0:02:38]} 21. axb3 {[%emt 0:03:14]} Kf8 {[%emt 0:04:48]} 22. Nc5 {[%emt 0:01:48]} (22. g4 $5 {[%cal Rg4f5]} Bxd3 23. Bxd3 $14) 22... Bc8 {[%emt 0:00:30]} 23. Ra1 {[%emt 0:03:03]} a6 {[%emt 0:00:26]} 24. g4 {[%emt 0:00:31]} Bg5 {[%emt 0:03:13]} 25. Bg3 {[%emt 0:02:17]} Be7 {[%emt 0:00:11]} 26. Kg2 {[%emt 0:02:01]} Bd6 {[%emt 0:00:46]} 27. b4 {[%emt 0:09:08]} Bxg3 {[%emt 0:01:10]} 28. Kxg3 {[%emt 0:00:04]} Nd6 {[%emt 0:00:26]} 29. Re1 {[%emt 0:00:19]} Re8 {[%emt 0:01:04]} 30. Rxe8+ {[%emt 0:00:09]} Kxe8 {[%emt 0:00:05]} 31. h4 {[%emt 0:01:41] Weighted Error Value: White=0.06 (flawless) /Black=0.06 (flawless)} 1/2-1/2

[Event "1st Chessable Sunway Formentera 2022"]
[Site "Formentera Punta Prima"]
[Date "2022.05.05"]
[Round "7.4"]
[White "Sasikiran, Krishnan"]
[Black "Vrolijk, Liam"]
[Result "1-0"]
[ECO "D78"]
[WhiteElo "2651"]
[BlackElo "2467"]
[Annotator "TA"]
[PlyCount "107"]
[EventDate "2022.05.05"]
[EventType "swiss"]
[EventCountry "ESP"]
[SourceTitle "playchess.com"]
[Source "ChessBase"]
[SourceQuality "1"]
[TimeControl "40/5400+30:1800+30"]

{[%evp 16,107,17,0,0,0,16,9,16,11,12,14,11,15,54,10,17,16,22,12,48,11,15,0,0,0,0,0,0,0,0,0,0,0,0,0,0,0,0,0,6,0,0,27,27,0,0,0,0,0,0,0,0,0,0,0,0,0,0,0,0,0,0,0,0,0,8,8,9,13,18,21,22,0,63,63,90,88,377,304,572,558,12832,12833,12834,63,12834,12835,12837,12838,12838,12838,12839,12840]} 1. Nf3 {[%emt 0:00:30]} d5 {[%emt 0:02:00]} 2. g3 {[%emt 0:00:00]} g6 {[%emt 0:03:18]} 3. Bg2 {[%emt 0:00:57]} Bg7 {[%emt 0:00:09]} 4. d4 {[%emt 0:01:14]} Nf6 {[%emt 0:00:24]} 5. O-O {[%emt 0:00:38]} O-O {[%emt 0:00:44]} 6. c4 {[%emt 0:00:11]} c6 {[%emt 0:01:18]} 7. Nbd2 {[%emt 0:07:41]} Bf5 {[%emt 0:05:54] 7...a5 injects fresh life into this line.} 8. b3 {[%emt 0:04:03]} a5 {[%emt 0:02:10]} 9. Bb2 {[%emt 0:06:26]} a4 {[%emt 0:05:17] D78: Fianchetto Grünfeld: 6 0-0 c6.} 10. e3 {[%emt 0:10:40]} Nbd7 {[%emt 0:20:12]} 11. Qe2 {[%emt 0:12:02]} Qb6 {[%emt 0:03:08] The position is equal.} 12. Rfc1 {[%emt 0:09:36] [#]} Ne4 $146 {[%emt 0:03:41]} ({Predecessor:} 12... e6 13. Nh4 Rfe8 14. cxd5 cxd5 15. Nxf5 gxf5 16. Bf1 a3 17. Bc3 Rec8 18. Qb5 Qc7 {½-½ (55) Meier,G (2629)-Van Wely,L (2609) Chess.com INT 2020}) 13. Nxe4 {[%emt 0:09:05]} Bxe4 {[%emt 0:00:25]} 14. Bh3 {[%emt 0:00:25]} Nf6 {[%emt 0:11:42]} 15. Nd2 {[%emt 0:03:40]} axb3 {[%emt 0:07:12]} 16. axb3 {[%emt 0:00:35]} Rxa1 {[%emt 0:01:13]} 17. Rxa1 {[%emt 0:01:01]} Bc2 {[%emt 0:00:42]} 18. Ba3 {[%emt 0:14:26]} Ra8 {[%emt 0:05:56]} 19. Bf1 {[%emt 0:01:23] Strongly threatening Bc5.} Bf8 {[%emt 0:06:45]} (19... Bxb3 $2 20. Bc5 $1 {[%mdl 512]} Qd8 21. Bxe7 $1 $18 {[%mdl 512]}) 20. Bc5 {[%emt 0:05:45]} Qd8 {[%emt 0:00:08]} 21. Qe1 {[%emt 0:00:37]} Ne4 {[%emt 0:02:36]} 22. Nxe4 {[%emt 0:02:26]} Bxe4 {[%emt 0:01:25]} 23. Qc3 {[%emt 0:01:19]} Bf5 {[%emt 0:01:30]} 24. f3 {[%emt 0:02:32]} h5 {[%emt 0:01:48]} 25. Kf2 {[%emt 0:01:07]} Rxa1 {[%emt 0:04:46]} 26. Qxa1 {[%emt 0:00:04]} b6 {[%emt 0:00:31]} 27. Bb4 {[%emt 0:00:38]} Qc7 {[%emt 0:00:23]} 28. Qa8 {[%emt 0:01:14]} dxc4 {[%emt 0:02:56]} 29. bxc4 {[%emt 0:00:24]} c5 {[%emt 0:01:06]} 30. dxc5 {[%emt 0:00:44]} bxc5 {[%emt 0:00:07]} 31. Qa5 {[%emt 0:01:40]} Qxa5 {[%emt 0:00:39]} 32. Bxa5 $11 {[%emt 0:00:04][%mdl 4096] Endgame KBB-KBB} e5 {[%emt 0:00:49]} 33. e4 {[%emt 0:01:50]} Bd7 {[%emt 0:00:54]} 34. Bd8 {[%emt 0:00:12]} Kg7 {[%emt 0:01:45]} 35. h4 {[%emt 0:00:25]} Bd6 {[%emt 0:00:34]} 36. Be2 {[%emt 0:00:33]} f5 {[%emt 0:00:57]} 37. exf5 {[%emt 0:00:55]} gxf5 {[%emt 0:00:14]} 38. Ke3 {[%emt 0:00:53]} f4+ {[%emt 0:01:54]} 39. gxf4 {[%emt 0:00:54]} exf4+ {[%emt 0:00:07]} 40. Ke4 {[%emt 0:00:00] next Kd5 is good for White.} Bc6+ {[%emt 0:00:00]} 41. Kf5 {[%emt 0:04:54] Black must now prevent Ke6.} Bd7+ {[%emt 0:02:35]} 42. Kg5 {[%emt 0:03:59]} Be8 {[%emt 0:00:33]} 43. Bf6+ {[%emt 0:05:43]} Kg8 {[%emt 0:04:08]} 44. Bd3 {[%emt 0:09:53] Threatens to win with Bg6.} Bf7 {[%emt 0:04:18]} (44... Bc6 $11) 45. Kf5 $14 {[%emt 0:01:51]} Kh7 {[%emt 0:05:32]} 46. Be2 {[%emt 0:01:32]} Kh6 $2 {[%emt 0:00:47][%mdl 8192] [#]} (46... Bg8 $16) 47. Be5 $1 $18 {[%emt 0:02:14]} (47. Bg5+ Kh7 $16) 47... Bg6+ $2 {[%emt 0:05:44]} (47... Be7 48. Bxf4+ Kg7) 48. Ke6 {[%emt 0:01:06]} ({Not} 48. Kxf4 Be7 $16) 48... Bxe5 {[%emt 0:00:36]} 49. Kxe5 {[%emt 0:00:04] KB-KB} Kg7 {[%emt 0:00:06]} 50. Bf1 $2 {[%emt 0:04:12]} ({Better is} 50. Kd5 $18 Kf6 51. Kxc5) 50... Bf7 $2 {[%emt 0:01:35][%mdl 8192]} (50... Bc2 $14) 51. Bd3 {[%emt 0:00:21] White is clearly winning.} Bg8 {[%emt 0:01:54]} 52. Kd6 {[%emt 0:00:38]} Kf6 {[%emt 0:00:09]} 53. Kxc5 {[%emt 0:00:11]} Ke5 {[%emt 0:00:06]} 54. Bg6 {[%emt 0:00:14] Weighted Error Value: White=0.23 (precise) /Black=0.32} 1-0

[Event "1st Chessable Sunway Formentera 2022"]
[Site "Formentera Punta Prima"]
[Date "2022.05.05"]
[Round "7.5"]
[White "Park, Evan"]
[Black "Narciso Dublan, Marc"]
[Result "0-1"]
[ECO "C18"]
[WhiteElo "2431"]
[BlackElo "2464"]
[Annotator "TA"]
[PlyCount "64"]
[EventDate "2022.05.05"]
[EventType "swiss"]
[EventCountry "ESP"]
[SourceTitle "playchess.com"]
[Source "ChessBase"]
[SourceQuality "1"]
[TimeControl "40/5400+30:1800+30"]

{[%evp 16,64,34,38,37,26,26,28,20,27,33,17,27,18,18,0,51,0,10,0,0,0,0,0,0,0,0,0,0,-82,-62,-75,-48,-146,-71,-332,-335,-289,-286,-317,-309,-479,-489,-1991,-1821,-1740,-445,-29981,-3600,-4279,-1537]} 1. e4 {[%emt 0:00:10]} e6 {[%emt 0:00:24]} 2. d4 {[%emt 0:00:10]} d5 {[%emt 0:00:07]} 3. Nc3 {[%emt 0:00:04]} Bb4 {[%emt 0:00:25]} 4. e5 {[%emt 0:00:05]} c5 {[%emt 0:00:22]} 5. a3 {[%emt 0:00:04]} Bxc3+ {[%emt 0:00:17]} 6. bxc3 {[%emt 0:00:03]} Nc6 {[%emt 0:00:25]} 7. Qg4 {[%emt 0:03:05]} g6 {[%emt 0:00:11]} 8. Nf3 {[%emt 0:14:13]} Qa5 {[%emt 0:01:17]} 9. Bd2 {[%emt 0:02:12]} c4 {[%emt 0:00:23] C18: French: 3 Nc3 Bb4: Main line: 7 h4 and 7 Qg4.} 10. h4 {[%emt 0:02:46]} h6 {[%emt 0:01:23]} 11. Be2 {[%emt 0:23:51]} Bd7 {[%emt 0:01:12] White has an edge.} 12. Qf4 {[%emt 0:01:07]} Rh7 {[%emt 0:00:45]} 13. a4 {[%emt 0:02:00]} O-O-O {[%emt 0:00:34]} 14. O-O {[%emt 0:00:50]} Rf8 {[%emt 0:06:02]} 15. Rfb1 {[%emt 0:03:51] [#]} Qd8 $146 {[%emt 0:14:33]} (15... f5 $11) ({Predecessor:} 15... Qc7 16. Bc1 f6 17. Ba3 Rff7 18. Bd6 fxe5 19. Qxf7 Rxf7 20. Bxc7 Kxc7 21. dxe5 Nge7 {1-0 (34) Pichot,A (2625)-Kanakaris,G (2382) Chess.com INT 2022}) 16. Bc1 {[%emt 0:04:47][%cal Bd2c1,Bc1a3,Ba3d6][%mdl 32]} f5 {[%emt 0:02:15]} 17. a5 {[%emt 0:06:33]} Nge7 {[%emt 0:03:17]} 18. Ba3 {[%emt 0:02:37] Black must now prevent Qc1.} Kb8 {[%emt 0:02:59]} 19. Bd6+ {[%emt 0:01:55]} Ka8 {[%emt 0:00:07]} 20. Qc1 {[%emt 0:06:06]} Rg8 {[%emt 0:08:16]} 21. Qb2 {[%emt 0:03:06][%csl Gb1][%cal Rb2b7]} Bc8 {[%emt 0:01:03]} 22. Nd2 {[%emt 0:02:39] [#]} (22. Qb6 $11 {keeps the balance.}) 22... g5 $1 $17 {[%emt 0:05:56][%cal Bg6g5,Bg5g4,Bg4g3,Bg3f2][%mdl 32]} 23. h5 {[%emt 0:11:20]} g4 {[%emt 0:11:03] Hoping for ...f4.} 24. Qb5 {[%emt 0:03:02]} (24. f4 $15) 24... Qe8 {[%emt 0:08:59]} ({Black should play} 24... a6 25. Qb6 Qxb6 26. axb6 (26. Rxb6 f4 $17) 26... f4) 25. Bxc4 {[%emt 0:03:41][%mdl 8192] Loses the game.} a6 $19 {[%emt 0:01:09]} (25... dxc4 $2 26. Nxc4 a6 27. Nb6+ Ka7 28. Qc5 $18) 26. Qc5 {[%emt 0:00:43] aiming for Be2.} dxc4 {[%emt 0:00:26]} 27. Nxc4 {[%emt 0:00:14] White threatens Nb6+ and mate.} Nd5 {[%emt 0:00:15] Threatens to win with ...g3.} 28. Rb6 {[%emt 0:01:59]} (28. g3 $142 f4 29. Nb6+ Nxb6 30. Rxb6) 28... g3 {[%emt 0:01:33]} 29. Rab1 {[%emt 0:00:42]} (29. Rxc6 $142 Qxc6 30. Qxc6 gxf2+ 31. Kxf2 bxc6 32. Nb6+ Nxb6 33. axb6) 29... gxf2+ {[%emt 0:01:34]} 30. Kf1 {[%emt 0:01:01]} Rhg7 {[%emt 0:22:43]} (30... Qxh5 $142 31. Qxc6 Qh1+ 32. Ke2 f1=B+ 33. Rxf1 Qxg2+ 34. Rf2 Qg4+ 35. Kd2 Qg5+ 36. Ke2 bxc6 37. Rb8+ Ka7) 31. Rxa6+ {[%emt 0:00:33] [#]} (31. Qxc6 $19 Qxc6 32. Rxc6 bxc6 33. Rb8+ Ka7 34. Nb6) 31... bxa6 {[%emt 0:00:05]} 32. Nb6+ {[%emt 0:00:29]} Nxb6 {[%emt 0:00:16] Weighted Error Value: White=1.03/Black=0.31} 0-1